bitfinex-derivatives/quotes_BTCF0:USTF0_20250710
["timestamp","ask_amount","ask_price","bid_price","bid_amount"]
[1752149244416,2.06412744,110930.0,110920.0,0.07312302]
[1752149245323,2.33688419,110930.0,110920.0,0.07312302]
[1752149245524,2.36898419,110930.0,110920.0,0.08012302]
[1752149245919,2.72978419,110930.0,110920.0,0.03910302]
[1752149246730,2.72978419,110930.0,110920.0,0.00880302]
[1752149248320,2.48842744,110930.0,110920.0,0.00880302]
[1752149248619,2.21497069,110930.0,110920.0,0.31947977]
[1752149248813,0.9018328,110930.0,110920.0,0.77158562]
[1752149249021,1.26720001,110940.0,110930.0,0.1802328]
[1752149249215,1.26720001,110940.0,110930.0,0.49350955]
[1752149249216,1.52371676,110940.0,110930.0,0.49350955]
[1752149249418,1.52371676,110940.0,110930.0,0.52600955]
[1752149249614,1.52371676,110940.0,110930.0,0.2846528]
[1752149249920,1.52371676,110940.0,110930.0,0.52600955]
[1752149250111,0.90611676,110940.0,110930.0,0.52600955]
[1752149250316,1.28236001,110940.0,110930.0,0.52600955]
[1752149250615,1.52363676,110940.0,110930.0,0.52600955]
[1752149250932,1.28244001,110940.0,110930.0,0.52604206]
[1752149251121,0.66476001,110940.0,110930.0,0.2846528]
[1752149251318,1.28248001,110940.0,110930.0,0.2846528]
[1752149251720,1.28248001,110940.0,110930.0,0.52604206]
[1752149252618,1.28268001,110940.0,110930.0,0.2846528]
[1752149253125,1.28268001,110940.0,110930.0,0.29821926]
[1752149253327,1.28268001,110940.0,110930.0,0.31215771]
[1752149254527,0.66476001,110940.0,110930.0,0.31215771]
[1752149255220,0.66476001,110940.0,110930.0,0.29821926]
[1752149256832,0.66476001,110940.0,110930.0,0.11798646]
[1752149257127,0.68734001,110940.0,110930.0,0.11798646]
[1752149257329,0.6688459,110940.0,110930.0,0.11798646]
[1752149257528,0.91023516,110940.0,110930.0,0.29821926]
[1752149257731,0.91023516,110940.0,110930.0,0.29823643]
[1752149258029,0.91023516,110940.0,110930.0,0.2846528]
[1752149258433,0.91023516,110940.0,110930.0,0.10442]
[1752149259525,0.91023516,110940.0,110930.0,0.11800466]
[1752149260130,1.52783516,110940.0,110930.0,0.11800466]
[1752149260329,1.52783516,110940.0,110930.0,0.29823746]
[1752149265432,1.2864459,110940.0,110930.0,0.29823746]
[1752149265631,1.52783516,110940.0,110930.0,0.29823746]
[1752149266035,0.91023516,110940.0,110930.0,0.29823746]
[1752149267232,0.6688459,110940.0,110930.0,0.29823746]
[1752149267732,0.7009459,110940.0,110930.0,0.29823746]
[1752149268532,0.94233516,110940.0,110930.0,0.29823746]
[1752149271834,0.7009459,110940.0,110930.0,0.26573746]
[1752149272031,0.94233516,110940.0,110930.0,0.26573746]
[1752149272228,0.7009459,110940.0,110930.0,0.26573746]
[1752149272427,0.94233516,110940.0,110930.0,0.26573746]
[1752149272629,0.7009459,110940.0,110930.0,0.26573746]
[1752149272830,0.94235506,110940.0,110930.0,0.50714662]
[1752149273732,0.7009459,110940.0,110930.0,0.50714662]
[1752149273933,0.94235506,110940.0,110930.0,0.50714662]
[1752149274836,0.58155506,110940.0,110930.0,0.50714662]
[1752149275029,0.94235506,110940.0,110930.0,0.50714662]
[1752149276434,1.55987506,110940.0,110930.0,0.50714662]
[1752149278135,1.59137506,110940.0,110930.0,0.50714662]
[1752149278434,1.59137506,110940.0,110930.0,0.5071687]
[1752149278632,1.59137506,110940.0,110930.0,0.26575954]
[1752149278836,1.59137506,110940.0,110930.0,0.5071687]
[1752149282533,1.57625506,110940.0,110930.0,0.5069187]
[1752149282841,1.57625506,110940.0,110930.0,0.26550954]
[1752149283233,1.57625506,110940.0,110930.0,0.5069187]
[1752149283439,1.57625506,110940.0,110930.0,0.56099434]
[1752149284236,0.95873506,110940.0,110930.0,0.56099434]
[1752149284440,0.97435506,110940.0,110930.0,0.56099434]
[1752149285043,0.97435506,110940.0,110930.0,0.31958518]
[1752149285242,0.97435506,110940.0,110930.0,0.56099434]
[1752149286339,0.97435506,110940.0,110930.0,1.17871434]
[1752149286843,0.61355506,110940.0,110930.0,1.17871434]
[1752149287038,0.97435506,110940.0,110930.0,1.17871434]
[1752149287630,0.5566363,110940.0,110930.0,0.56099434]
[1752149287935,0.5609301,110950.0,110940.0,0.1802163]
[1752149288139,0.5765501,110950.0,110940.0,0.74686136]
[1752149288340,0.5765501,110950.0,110940.0,0.831237]
[1752149288540,0.5609301,110950.0,110940.0,0.791317]
[1752149288738,0.5609301,110950.0,110940.0,0.830977]
[1752149289043,0.01993,110950.0,110940.0,0.830977]
[1752149289242,0.01993,110950.0,110940.0,0.831977]
[1752149289442,0.2001301,110950.0,110940.0,0.831977]
[1752149289640,0.01993,110950.0,110940.0,0.831977]
[1752149289844,0.2001301,110950.0,110940.0,0.831977]
[1752149290538,0.01993,110950.0,110940.0,1.373049]
[1752149290940,0.01993,110950.0,110940.0,1.3728057]
[1752149291145,0.01993,110950.0,110940.0,1.13151819]
[1752149291846,0.2001301,110950.0,110940.0,0.89023068]
[1752149292146,0.2381201,110950.0,110940.0,0.70995868]
[1752149292444,0.2690201,110950.0,110940.0,0.67965868]
[1752149292740,0.2690201,110950.0,110940.0,0.72590238]
[1752149292947,0.54260761,110950.0,110940.0,0.90611868]
[1752149293244,0.92214039,110950.0,110940.0,0.67198674]
[1752149293647,0.92214039,110950.0,110940.0,0.01460674]
[1752149293838,1.54010039,110950.0,110940.0,0.01460674]
[1752149295950,1.54110039,110950.0,110940.0,0.01360674]
[1752149296450,1.54210039,110950.0,110940.0,0.01360674]
[1752149297847,0.1802163,110940.0,110930.0,0.0239]
[1752149298049,0.1802163,110940.0,110930.0,0.03744058]
[1752149298050,0.52269381,110940.0,110930.0,0.03744058]
[1752149299058,0.52269381,110940.0,110930.0,0.03844058]
[1752149299547,0.52269381,110940.0,110930.0,0.21867318]
[1752149299749,0.52269381,110940.0,110930.0,0.23443318]
[1752149299948,0.2814063,110940.0,110930.0,0.23443318]
[1752149300863,0.1956263,110940.0,110930.0,0.47572069]
[1752149301056,0.1956263,110940.0,110930.0,0.53952069]
[1752149301759,0.1802163,110940.0,110930.0,0.53952069]
[1752149301945,0.2001563,110940.0,110930.0,0.53952069]
[1752149303667,0.2001563,110940.0,110930.0,0.539508]
[1752149304967,0.2155663,110940.0,110930.0,0.539508]
[1752149306573,0.2155663,110940.0,110930.0,0.53950764]
[1752149310071,0.2155663,110940.0,110930.0,0.59358328]
[1752149313176,0.2001563,110940.0,110930.0,0.55392328]
[1752149314475,0.2001563,110940.0,110930.0,0.55392657]
[1752149320281,0.2001563,110940.0,110930.0,0.55393135]
[1752149324682,0.2001563,110940.0,110930.0,0.31264384]
[1752149324877,0.2001563,110940.0,110930.0,0.55392118]
[1752149328790,0.44154168,110940.0,110930.0,0.55401905]
[1752149330886,0.47474168,110940.0,110930.0,0.55401905]
[1752149334892,0.47474168,110940.0,110930.0,0.52281905]
[1752149335192,0.50674168,110940.0,110930.0,0.52281905]
[1752149335391,0.74812706,110940.0,110930.0,0.86591367]
[1752149335592,0.74812706,110940.0,110930.0,1.10729905]
[1752149335983,0.74812706,110940.0,110930.0,0.86591367]
[1752149336292,0.74812706,110940.0,110930.0,1.10729905]
[1752149339895,0.74812706,110940.0,110930.0,0.86591367]
[1752149340096,0.75727374,110940.0,110930.0,0.06860107]
[1752149340395,1.73515374,110940.0,110930.0,0.01452543]
[1752149342291,1.25238298,110940.0,110930.0,0.01452543]
[1752149342694,1.73515374,110940.0,110930.0,0.01452543]
[1752149342989,1.49383687,110940.0,110930.0,0.01452543]
[1752149345787,1.49383687,110940.0,110930.0,0.19475793]
[1752149346599,1.49383687,110940.0,110930.0,0.01452543]
[1752149346898,1.49383687,110940.0,110930.0,0.02843871]
[1752149349699,1.49383687,110940.0,110930.0,0.20867131]
[1752149352004,1.49383687,110940.0,110930.0,0.02843871]
[1752149354102,1.25238298,110940.0,110930.0,0.20867131]
[1752149354407,1.49383687,110940.0,110930.0,0.20867131]
[1752149354612,0.87675687,110940.0,110930.0,0.20867131]
[1752149354800,1.49619687,110940.0,110930.0,0.20867131]
[1752149356214,1.25474298,110940.0,110930.0,0.20867131]
[1752149356397,1.25474298,110940.0,110930.0,0.19514505]
[1752149356596,1.25474298,110940.0,110930.0,0.20872644]
[1752149357512,0.63530298,110940.0,110930.0,0.45018033]
[1752149357814,0.8527963,110940.0,110930.0,0.45018033]
[1752149358006,0.2333563,110940.0,110930.0,0.51518033]
[1752149359315,0.2001563,110940.0,110930.0,0.51518033]
[1752149359512,0.2001563,110940.0,110930.0,0.5151004]
[1752149359926,0.2001563,110940.0,110930.0,1.4951804]
[1752149359927,0.01994,110940.0,110930.0,1.4951804]
[1752149360229,0.3153431,110960.0,110950.0,0.1802001]
[1752149360428,0.9355431,110960.0,110950.0,0.20761401]
[1752149360726,1.21682369,110960.0,110950.0,0.20761401]
[1752149360927,0.9753698,110960.0,110950.0,0.4808679]
[1752149361529,0.9813698,110960.0,110950.0,0.23941401]
[1752149361722,0.9723031,110960.0,110950.0,0.23941401]
[1752149362425,0.9723031,110960.0,110950.0,0.23923041]
[1752149363030,0.9723031,110960.0,110950.0,0.49802844]
[1752149363229,0.9723031,110960.0,110950.0,0.52862844]
[1752149363723,0.3517431,110960.0,110950.0,0.28717455]
[1752149363930,0.30786536,110960.0,110950.0,0.51470524]
[1752149364330,0.30786536,110960.0,110950.0,1.13562524]
[1752149365333,0.30586536,110960.0,110950.0,1.13562524]
[1752149365918,0.30286536,110960.0,110950.0,1.13562524]
[1752149366127,0.30386536,110960.0,110950.0,1.13562524]
[1752149366320,0.30386536,110960.0,110950.0,1.149544]
[1752149366516,0.30386536,110960.0,110950.0,1.14899892]
[1752149367926,0.30386536,110960.0,110950.0,1.50979892]
[1752149368119,0.30386536,110960.0,110950.0,1.49649181]
[1752149368731,0.30386536,110960.0,110950.0,1.49648528]
[1752149369231,0.30386536,110960.0,110950.0,1.25503139]
[1752149369437,0.30386536,110960.0,110950.0,1.49648528]
[1752149369731,0.30386536,110960.0,110950.0,1.49148528]
[1752149370132,0.30386536,110960.0,110950.0,1.25029685]
[1752149370430,0.30386536,110960.0,110950.0,1.49175074]
[1752149371332,0.30386536,110960.0,110950.0,1.49174494]
[1752149372032,0.30386536,110960.0,110950.0,1.47783851]
[1752149372534,0.25881696,110960.0,110950.0,1.47783851]
[1752149372834,0.21376896,110960.0,110950.0,1.47783851]
[1752149373832,0.03357176,110960.0,110950.0,1.47783851]
[1752149374734,0.21375556,110960.0,110950.0,1.47783851]
[1752149374933,0.03357176,110960.0,110950.0,1.47783851]
[1752149375537,0.03357176,110960.0,110950.0,1.49192394]
[1752149376029,0.002,110960.0,110950.0,1.49192394]
[1752149376230,0.0334271,110960.0,110950.0,1.49192394]
[1752149376432,0.2136109,110960.0,110950.0,1.49192394]
[1752149376837,0.1821838,110960.0,110950.0,1.49192394]
[1752149378039,0.1821838,110960.0,110950.0,1.49192384]
[1752149378836,0.68277707,110980.0,110950.0,1.31672374]
[1752149379032,0.7264362,110980.0,110970.0,0.42162149]
[1752149379232,0.7264362,110980.0,110970.0,1.67658682]
[1752149379433,0.7264362,110980.0,110970.0,1.74088682]
[1752149380039,0.7598362,110980.0,110970.0,1.74088577]
[1752149380432,0.7147955,110980.0,110970.0,1.74088577]
[1752149382235,0.7157955,110980.0,110970.0,1.74088577]
[1752149382544,0.7157955,110980.0,110970.0,1.49943188]
[1752149382744,0.7157955,110980.0,110970.0,1.74088577]
[1752149383136,0.68437707,110980.0,110970.0,1.49943188]
[1752149383748,0.68437707,110980.0,110970.0,1.46693188]
[1752149388646,0.71597707,110980.0,110970.0,1.46693188]
[1752149393348,0.71597707,110980.0,110970.0,1.70838577]
[1752149395049,0.71597707,110980.0,110970.0,1.70834784]
[1752149395245,0.71597707,110980.0,110970.0,1.46689395]
[1752149395451,0.71597707,110980.0,110970.0,1.70834784]
[1752149395641,1.81872485,110980.0,110970.0,0.01404635]
[1752149396051,1.57727096,110980.0,110970.0,0.01404635]
[1752149397546,1.65796873,110980.0,110970.0,0.01404635]
[1752149398652,0.1802001,110950.0,110940.0,0.618959]
[1752149398942,0.1802163,110940.0,110930.0,1.25297]
[1752149399148,0.5736163,110940.0,110930.0,0.90544988]
[1752149399348,0.6065163,110940.0,110930.0,0.90544988]
[1752149399848,0.6065163,110940.0,110930.0,0.81533618]
[1752149400047,0.84797019,110940.0,110930.0,0.2473712]
[1752149400442,0.6065163,110940.0,110930.0,0.2473712]
[1752149400641,1.2282763,110940.0,110930.0,0.24750098]
[1752149400842,1.2282763,110940.0,110930.0,0.25750098]
[1752149401449,1.2282763,110940.0,110930.0,0.20362596]
[1752149401851,0.6065163,110940.0,110930.0,0.25750098]
[1752149402152,1.2282763,110940.0,110930.0,0.25750098]
[1752149402453,1.2282763,110940.0,110930.0,0.20362596]
[1752149404148,1.74261559,110940.0,110930.0,0.02340966]
[1752149404350,1.5011617,110940.0,110930.0,0.02340966]
[1752149404652,1.5011617,110940.0,110930.0,0.20364226]
[1752149406645,1.25970781,110940.0,110930.0,0.20064226]
[1752149406846,1.5011617,110940.0,110930.0,0.19464226]
[1752149407043,1.5011617,110940.0,110930.0,0.19564226]
[1752149407245,1.25970781,110940.0,110930.0,0.19564226]
[1752149407554,1.5011617,110940.0,110930.0,0.19564226]
[1752149407748,0.8794017,110940.0,110930.0,0.19564226]
[1752149407951,1.26046781,110940.0,110930.0,0.19564226]
[1752149408151,1.26046781,110940.0,110930.0,0.22864226]
[1752149410250,1.2290363,110940.0,110930.0,0.22864226]
[1752149410457,0.8682363,110940.0,110930.0,0.22864226]
[1752149410652,0.4959597,110950.0,110940.0,0.1802164]
[1752149410955,1.36226855,110950.0,110940.0,0.43507995]
[1752149411154,1.36226855,110950.0,110940.0,0.46637995]
[1752149412056,1.60372244,110950.0,110940.0,0.22492606]
[1752149412355,1.63662244,110950.0,110940.0,0.22492606]
[1752149412655,1.63762244,110950.0,110940.0,0.22492606]
[1752149412856,1.63762244,110950.0,110940.0,0.19362606]
[1752149413051,1.63762244,110950.0,110940.0,0.01340966]
[1752149413355,1.63862244,110950.0,110940.0,0.01340966]
[1752149413750,1.63862244,110950.0,110940.0,0.19362606]
[1752149418254,1.63862244,110950.0,110940.0,0.01340966]
[1752149418854,1.88007633,110950.0,110940.0,0.01340966]
[1752149419056,0.1802327,110930.0,110920.0,0.24415813]
[1752149419561,0.45258659,110930.0,110920.0,0.22709822]
[1752149419754,0.45258659,110930.0,110920.0,0.25989822]
[1752149419961,0.2111327,110930.0,110920.0,0.25989822]
[1752149420362,0.2111327,110930.0,110920.0,0.26489822]
[1752149420560,0.45258659,110930.0,110920.0,0.26489822]
[1752149420959,0.48548659,110930.0,110920.0,0.26489822]
[1752149421266,0.6048327,110930.0,110920.0,0.03960302]
[1752149421565,0.6048327,110930.0,110920.0,0.21985172]
[1752149421566,0.63666537,110930.0,110920.0,0.21985172]
[1752149421765,0.87811926,110930.0,110920.0,0.03960302]
[1752149421964,0.63666537,110930.0,110920.0,0.18705172]
[1752149422266,0.63666537,110930.0,110920.0,0.20426344]
[1752149422470,0.87811926,110930.0,110920.0,0.20426344]
[1752149422654,0.87811926,110930.0,110920.0,0.02401474]
[1752149423163,0.63666537,110930.0,110920.0,0.20426344]
[1752149423371,0.87811926,110930.0,110920.0,0.20426344]
[1752149424071,0.63666537,110930.0,110920.0,0.20426344]
[1752149424462,0.87811926,110930.0,110920.0,0.20426344]
[1752149424662,0.63666537,110930.0,110920.0,0.02401474]
[1752149425058,0.87811926,110930.0,110920.0,0.02401474]
[1752149425268,0.63666537,110930.0,110920.0,0.02401474]
[1752149425469,0.87811926,110930.0,110920.0,0.02401474]
[1752149426568,0.63666537,110930.0,110920.0,0.02401474]
[1752149426771,1.52707926,110930.0,110920.0,0.02401474]
[1752149427269,1.28562537,110930.0,110920.0,0.20426334]
[1752149427461,1.52707926,110930.0,110920.0,0.20426334]
[1752149429575,1.52707926,110930.0,110920.0,0.02401474]
[1752149431069,1.52707926,110930.0,110920.0,0.03756527]
[1752149431471,1.53598565,110930.0,110920.0,0.03756527]
[1752149433778,1.53598565,110930.0,110920.0,0.20060225]
[1752149434781,0.88702565,110930.0,110920.0,0.20060225]
[1752149434981,0.60376537,110930.0,110920.0,0.44205614]
[1752149435185,1.21958537,110930.0,110920.0,0.47255614]
[1752149435373,0.57286537,110930.0,110920.0,0.50335614]
[1752149435777,0.57286537,110930.0,110920.0,0.50330224]
[1752149436380,0.576429,110930.0,110920.0,0.50330224]
[1752149437886,0.576429,110930.0,110920.0,0.50328216]
[1752149440085,0.215629,110930.0,110920.0,0.50328216]
[1752149440287,0.0353963,110930.0,110920.0,0.50328216]
[1752149440587,0.0353963,110930.0,110920.0,0.86408216]
[1752149443489,0.2156287,110930.0,110920.0,1.50888216]
[1752149444088,0.2156287,110930.0,110920.0,1.52297051]
[1752149445083,0.2156287,110930.0,110920.0,1.16217051]
[1752149445288,0.2156287,110930.0,110920.0,1.52297051]
[1752149446692,0.2156287,110930.0,110920.0,1.28151706]
[1752149447391,0.2156287,110930.0,110920.0,1.52297095]
[1752149449391,0.2156287,110930.0,110920.0,0.91939706]
[1752149449593,0.2488287,110930.0,110920.0,0.91939706]
[1752149449785,0.2488287,110930.0,110920.0,1.28019706]
[1752149449991,0.2488287,110930.0,110920.0,0.91939706]
[1752149450392,0.2488287,110930.0,110920.0,1.16085095]
[1752149451293,0.2488287,110930.0,110920.0,0.91939706]
[1752149451491,0.2645187,110930.0,110920.0,1.56085095]
[1752149452797,0.2645187,110930.0,110920.0,1.20005095]
[1752149453292,0.52855259,110930.0,110920.0,0.28431706]
[1752149453492,0.55985259,110930.0,110920.0,0.92727706]
[1752149453890,0.55985259,110930.0,110920.0,0.89677706]
[1752149455297,0.55985259,110930.0,110920.0,0.25381706]
[1752149457400,0.55985259,110930.0,110920.0,0.07356836]
[1752149457587,0.92065259,110930.0,110920.0,0.07356836]
[1752149457787,0.9201033,110930.0,110920.0,0.05788836]
[1752149458799,0.9201033,110930.0,110920.0,0.03436836]
[1752149459397,1.5621033,110930.0,110920.0,0.03436836]
[1752149463899,1.5621033,110930.0,110900.0,0.005]
[1752149463900,0.1802648,110910.0,110900.0,0.005]
[1752149464200,2.93036751,110910.0,110900.0,0.005]
[1752149464397,2.99376751,110910.0,110900.0,0.005]
[1752149464996,2.99576751,110910.0,110900.0,0.005]
[1752149465503,2.99776751,110910.0,110900.0,0.005]
[1752149465800,2.81485758,110910.0,110900.0,0.005]
[1752149466603,1.93252369,110910.0,110900.0,0.005]
[1752149466803,2.17397758,110910.0,110900.0,0.005]
[1752149466998,1.53297758,110910.0,110900.0,0.005]
[1752149467198,2.17389758,110910.0,110900.0,0.005]
[1752149467901,2.17489758,110910.0,110900.0,0.005]
[1752149468105,2.24850303,110910.0,110900.0,0.005]
[1752149469404,2.25150303,110910.0,110900.0,0.005]
[1752149469709,2.25102303,110910.0,110900.0,0.1852805]
[1752149469905,2.25102303,110910.0,110900.0,0.2244805]
[1752149469906,2.00964914,110910.0,110900.0,0.2244805]
[1752149470404,2.00964914,110910.0,110900.0,0.0442]
[1752149470608,1.36912914,110910.0,110900.0,0.0442]
[1752149470806,2.00940914,110910.0,110900.0,0.0442]
[1752149471106,2.25086303,110910.0,110900.0,0.0442]
[1752149471505,2.25086303,110910.0,110900.0,0.02852]
[1752149472907,2.25086303,110910.0,110900.0,0.005]
[1752149473601,0.3155149,110900.0,110890.0,0.1802933]
[1752149473800,1.0893895,110900.0,110890.0,0.2194933]
[1752149474907,1.09822518,110900.0,110890.0,0.2194933]
[1752149475099,1.10022518,110900.0,110890.0,0.2194933]
[1752149475807,1.10222518,110900.0,110890.0,0.23320873]
[1752149476205,1.10222518,110900.0,110890.0,0.05291543]
[1752149476908,1.10222518,110900.0,110890.0,0.03723543]
[1752149477706,1.10022518,110900.0,110890.0,0.03723543]
[1752149477907,1.10322518,110900.0,110890.0,0.03723543]
[1752149481808,1.10322518,110900.0,110890.0,0.05364543]
[1752149483308,0.86177129,110900.0,110890.0,0.05364543]
[1752149483504,1.10322518,110900.0,110890.0,0.05364543]
[1752149483700,1.10322518,110900.0,110890.0,0.08694543]
[1752149487311,1.10322518,110900.0,110890.0,0.10083585]
[1752149487511,1.18386734,110900.0,110890.0,0.10083585]
[1752149489810,1.10322518,110900.0,110890.0,0.10083585]
[1752149490011,1.74090518,110900.0,110890.0,0.10083585]
[1752149492717,1.74002518,110900.0,110890.0,0.10083585]
[1752149493419,1.10322518,110900.0,110890.0,0.08694543]
[1752149493619,1.73982518,110900.0,110890.0,0.08694543]
[1752149494321,1.73986518,110900.0,110890.0,0.08694543]
[1752149494619,1.10322518,110900.0,110890.0,0.08694543]
[1752149494817,1.73966518,110900.0,110890.0,0.08694543]
[1752149495615,1.73966518,110900.0,110890.0,0.10104058]
[1752149495920,1.82030734,110900.0,110890.0,0.10104058]
[1752149496421,1.45950734,110900.0,110890.0,0.10104058]
[1752149496720,1.82030734,110900.0,110890.0,0.10104058]
[1752149497020,1.81974734,110900.0,110890.0,0.10104058]
[1752149497217,1.81970734,110900.0,110890.0,0.10104058]
[1752149497716,0.1802967,110890.0,110880.0,0.00180367]
[1752149497915,0.87937903,110890.0,110880.0,0.25020163]
[1752149498120,0.87937903,110890.0,110880.0,0.28130163]
[1752149498320,1.23007514,110890.0,110880.0,0.50866029]
[1752149498520,1.47152903,110890.0,110880.0,0.3000064]
[1752149499022,1.47252903,110890.0,110880.0,0.3000064]
[1752149499427,1.48423903,110890.0,110880.0,0.3000064]
[1752149499821,0.84767903,110890.0,110880.0,0.3000064]
[1752149500020,1.48507903,110890.0,110880.0,0.3000064]
[1752149500623,1.50418038,110890.0,110880.0,0.3000064]
[1752149501223,1.50418038,110890.0,110880.0,0.1196934]
[1752149501425,1.53648038,110890.0,110880.0,0.1196934]
[1752149503425,1.53648038,110890.0,110880.0,0.3000064]
[1752149504527,1.29502649,110890.0,110880.0,0.3000064]
[1752149504727,1.53648038,110890.0,110880.0,0.3000064]
[1752149507328,1.61712254,110890.0,110880.0,0.3000064]
[1752149509627,0.93671254,110890.0,110880.0,0.3000064]
[1752149509832,1.49103038,110890.0,110880.0,0.31408156]
[1752149510236,1.49103038,110890.0,110880.0,0.31408194]
[1752149510933,1.49003038,110890.0,110880.0,0.31508194]
[1752149511236,0.85507038,110890.0,110880.0,0.31508194]
[1752149511426,1.48995038,110890.0,110880.0,0.31508194]
[1752149511627,1.48895038,110890.0,110880.0,0.31508194]
[1752149511926,1.48895038,110890.0,110880.0,0.31608194]
[1752149513038,1.48895038,110890.0,110880.0,0.3160789]
[1752149513927,0.85407038,110890.0,110880.0,0.3160789]
[1752149514334,1.48827038,110890.0,110880.0,0.3160789]
[1752149516937,1.48845039,110890.0,110880.0,0.5577128]
[1752149517445,1.24681649,110890.0,110880.0,0.5577128]
[1752149517647,1.48845039,110890.0,110880.0,0.5577128]
[1752149518545,1.48845039,110890.0,110880.0,0.3160789]
[1752149518748,1.48845039,110890.0,110880.0,0.5577128]
[1752149520146,0.85425039,110890.0,110880.0,0.5577128]
[1752149520445,1.48769039,110890.0,110880.0,0.5577128]
[1752149520646,1.49940039,110890.0,110880.0,0.5577128]
[1752149520846,1.53100039,110890.0,110880.0,0.5577128]
[1752149521142,1.53100039,110890.0,110880.0,0.3160789]
[1752149521351,1.53100039,110890.0,110880.0,0.5577128]
[1752149522051,1.28936649,110890.0,110880.0,0.2832789]
[1752149522351,1.32076649,110890.0,110880.0,0.0718659]
[1752149522650,1.80403429,110890.0,110880.0,0.0718659]
[1752149522847,1.56245513,110890.0,110880.0,0.0718659]
[1752149523441,1.32076649,110890.0,110880.0,0.0718659]
[1752149523646,1.56245513,110890.0,110880.0,0.0718659]
[1752149523851,1.56245513,110890.0,110880.0,0.08893246]
[1752149525148,1.32076649,110890.0,110880.0,0.08893246]
[1752149525344,1.56245513,110890.0,110880.0,0.08893246]
[1752149526046,1.32076649,110890.0,110880.0,0.08893246]
[1752149526247,1.56245513,110890.0,110880.0,0.26924546]
[1752149526750,1.56245513,110890.0,110880.0,0.25540573]
[1752149527051,1.56245513,110890.0,110880.0,0.26915397]
[1752149528148,1.56245513,110890.0,110880.0,0.26921753]
[1752149531245,0.67561649,110890.0,110880.0,0.51090617]
[1752149531452,1.20961513,110890.0,110880.0,0.26921753]
[1752149532653,1.57041513,110890.0,110880.0,0.26921753]
[1752149534151,1.32872649,110890.0,110880.0,0.26921753]
[1752149534353,1.57041513,110890.0,110880.0,0.26921753]
[1752149534552,1.55131378,110890.0,110880.0,0.25215097]
[1752149535256,1.63195594,110890.0,110880.0,0.07183797]
[1752149535456,1.63195594,110890.0,110880.0,0.25215107]
[1752149535651,1.3902673,110890.0,110880.0,0.25215107]
[1752149535850,1.63195594,110890.0,110880.0,0.25215107]
[1752149537453,1.3902673,110890.0,110880.0,0.25215107]
[1752149537755,1.55159378,110890.0,110880.0,0.25215107]
[1752149538754,1.63223594,110890.0,110880.0,0.25215107]
[1752149538951,0.99055594,110890.0,110880.0,0.25215107]
[1752149539147,1.63207594,110890.0,110880.0,0.25215107]
[1752149539547,1.3903873,110890.0,110880.0,0.25215107]
[1752149539754,1.63207594,110890.0,110880.0,0.25215107]
[1752149540256,1.55143378,110890.0,110880.0,0.25215107]
[1752149541459,1.55143378,110890.0,110880.0,0.25206534]
[1752149541655,1.30974514,110890.0,110880.0,0.25206534]
[1752149541855,1.55087378,110890.0,110880.0,0.25206534]
[1752149542961,1.30918514,110890.0,110880.0,0.49369689]
[1752149543162,1.30918514,110890.0,110880.0,0.25206534]
[1752149543461,1.55081669,110890.0,110880.0,0.49369689]
[1752149544160,1.55081669,110890.0,110880.0,0.25206534]
[1752149544460,1.55081669,110890.0,110880.0,0.49369599]
[1752149544864,1.55081669,110890.0,110880.0,0.25206444]
[1752149545161,1.55081669,110890.0,110880.0,0.49369599]
[1752149545363,1.54905839,110890.0,110880.0,0.49369599]
[1752149546864,1.54905839,110890.0,110880.0,0.25206444]
[1752149547063,1.54905839,110890.0,110880.0,0.49369599]
[1752149547465,1.54905839,110890.0,110880.0,0.25206444]
[1752149547663,1.54905839,110890.0,110880.0,0.49369599]
[1752149548063,1.54905839,110890.0,110880.0,0.25206444]
[1752149548460,1.54905839,110890.0,110880.0,0.49369599]
[1752149549564,1.54905839,110890.0,110880.0,0.25206444]
[1752149549760,1.54905839,110890.0,110880.0,0.49369599]
[1752149549965,1.54905839,110890.0,110880.0,0.25206444]
[1752149550361,1.54905839,110890.0,110880.0,0.49369599]
[1752149551963,1.54905839,110890.0,110880.0,0.07175134]
[1752149552466,1.30742684,110890.0,110880.0,0.07175134]
[1752149552665,1.54905839,110890.0,110880.0,0.07175134]
[1752149554968,1.79068994,110890.0,110880.0,0.05534134]
[1752149555170,1.79068994,110890.0,110880.0,0.03160134]
[1752149555367,1.54905839,110890.0,110880.0,0.03160134]
[1752149556269,1.54905839,110890.0,110880.0,0.01758633]
[1752149556770,1.79068994,110890.0,110880.0,0.01758633]
[1752149556973,1.79068994,110890.0,110880.0,0.03159337]
[1752149557171,1.79068994,110890.0,110880.0,0.01757902]
[1752149557564,1.79068994,110890.0,110880.0,0.01657902]
[1752149557764,1.79168994,110890.0,110880.0,0.01657902]
[1752149557967,1.79268994,110890.0,110880.0,0.01557902]
[1752149558168,1.55105839,110890.0,110880.0,0.01557902]
[1752149558471,1.55105839,110890.0,110880.0,0.03814902]
[1752149558972,1.55105839,110890.0,110880.0,0.21846202]
[1752149559775,0.54929839,110890.0,110880.0,0.47520357]
[1752149559969,1.18841839,110890.0,110880.0,0.47520357]
[1752149560165,1.18841839,110890.0,110880.0,0.50600357]
[1752149560472,1.11354001,110890.0,110880.0,0.86680357]
[1752149560973,0.88361846,110890.0,110880.0,0.26431832]
[1752149561170,1.15815001,110890.0,110880.0,0.50594987]
[1752149561374,1.15815001,110890.0,110880.0,0.26431832]
[1752149561572,1.15615001,110890.0,110880.0,0.50694987]
[1752149561771,1.15615001,110890.0,110880.0,0.26631832]
[1752149561969,1.15615001,110890.0,110880.0,0.50794987]
[1752149561970,1.15791001,110890.0,110880.0,0.50794987]
[1752149562975,1.15791001,110890.0,110880.0,0.26631832]
[1752149563176,0.51719001,110890.0,110880.0,0.26631832]
[1752149563372,1.15783001,110890.0,110880.0,0.50794987]
[1752149563572,1.15783001,110890.0,110880.0,0.26631832]
[1752149563773,1.15783001,110890.0,110880.0,0.50794987]
[1752149564076,1.15783001,110890.0,110880.0,0.50796673]
[1752149564276,0.27555846,110890.0,110880.0,0.50796673]
[1752149564479,0.05065176,110890.0,110880.0,1.11039828]
[1752149564678,0.1802813,110900.0,110890.0,0.2704387]
[1752149564874,0.42191285,110900.0,110890.0,1.0095293]
[1752149565173,0.42191285,110900.0,110890.0,1.0320993]
[1752149565376,0.42191285,110900.0,110890.0,1.04930727]
[1752149565878,0.42291285,110900.0,110890.0,1.04930727]
[1752149566980,0.42391285,110900.0,110890.0,1.04930727]
[1752149567380,0.42391285,110900.0,110890.0,1.69030727]
[1752149567580,0.002,110900.0,110890.0,1.69030727]
[1752149567777,0.24363155,110900.0,110890.0,1.69030727]
[1752149568482,0.24363155,110900.0,110890.0,1.6992357]
[1752149568682,0.42391205,110900.0,110890.0,1.6992357]
[1752149569483,0.24363155,110900.0,110890.0,1.69903629]
[1752149570579,0.42391205,110900.0,110890.0,1.69903629]
[1752149571482,0.002,110900.0,110890.0,1.69903629]
[1752149571679,0.24363155,110900.0,110890.0,1.69903629]
[1752149571879,0.002,110900.0,110890.0,1.69903629]
[1752149572079,0.24363155,110900.0,110890.0,1.69903629]
[1752149573289,0.24363155,110900.0,110890.0,1.45740474]